bitfinex-derivatives/quotes_ETHF0:USTF0_20241008
["timestamp","ask_amount","ask_price","bid_price","bid_amount"]
[1728370220378,0.3901,2432.7,2432.6,0.41118]
[1728370220773,0.3901,2432.7,2432.6,0.82138]
[1728370220976,0.80126,2432.7,2432.6,0.82138]
[1728370223981,0.3944,2432.9,2432.8,0.41115]
[1728370224176,3.61891,2433.1,2433.0,0.41111]
[1728370224978,3.2078,2433.1,2433.0,0.41111]
[1728370225179,0.4057,2433.3,2433.2,0.41108]
[1728370225374,0.52547714,2433.4,2433.2,0.41108]
[1728370225583,0.41106,2433.3,2433.2,0.41108]
[1728370226187,0.41106,2433.4,2432.9,0.3914]
[1728370226387,0.41106,2433.4,2433.2,0.41107]
[1728370226587,0.41106,2433.4,2432.9,0.3914]
[1728370226888,0.41106,2433.4,2433.3,0.41106]
[1728370227986,3.21,2433.5,2433.2,0.41107]
[1728370228190,0.41106,2433.4,2433.2,0.41107]
[1728370229784,0.41106,2433.3,2433.2,0.41107]
[1728370229990,3.21,2433.5,2432.9,0.3914]
[1728370230185,3.21,2433.1,2432.8,0.41114]
[1728370230490,0.41113,2432.9,2432.8,0.41114]
[1728370230887,1.2098,2433.0,2432.8,0.41114]
[1728370231192,1.62093,2433.0,2432.7,3.2078]
[1728370231390,1.62093,2433.0,2432.8,0.41113]
[1728370231786,1.62093,2433.0,2432.9,0.41113]
[1728370232392,1.2098,2433.0,2432.7,3.2078]
[1728370232690,0.41113,2432.9,2432.8,0.41114]
[1728370232895,3.62113,2432.9,2432.8,0.41114]
[1728370233187,1.62092,2433.0,2432.9,0.41113]
[1728370233584,0.82221,2433.0,2432.9,0.41113]
[1728370233987,0.4111,2433.0,2432.9,0.41113]
[1728370234184,0.82221,2433.0,2432.9,0.41113]
[1728370234590,0.4111,2433.0,2432.9,0.41113]
[1728370235090,0.82221,2433.0,2432.9,0.41113]
[1728370235488,0.82221,2433.0,2432.7,3.2078]
[1728370235489,0.4111,2433.0,2432.7,3.2078]
[1728370235687,0.82304,2432.9,2432.8,0.41115]
[1728370237990,0.4119,2432.9,2432.8,0.41115]
[1728370238298,0.82222,2433.0,2432.9,0.41113]
[1728370239696,0.82221,2433.0,2432.9,0.41113]
[1728370240293,0.4111,2433.0,2432.9,0.41113]
[1728370241697,0.404,2433.2,2432.7,3.6247]
[1728370241894,1.23769,2433.2,2433.1,0.4111]
[1728370243192,0.4226,2433.2,2433.1,0.4111]
[1728370243397,0.4111,2433.1,2433.0,0.4111]
[1728370243798,0.8244,2433.1,2433.0,0.4111]
[1728370244099,0.4133,2433.1,2433.0,0.4111]
[1728370244787,0.4226,2433.2,2432.8,0.405]
[1728370245097,0.83368,2433.2,2433.1,0.4111]
[1728370246014,0.41111,2433.1,2433.0,0.4111]
[1728370246298,0.4111,2433.1,2433.0,0.4111]
[1728370247701,0.4111,2433.1,2433.0,0.41111]
[1728370249402,0.41112,2433.0,2432.9,0.41112]
[1728370252000,1.9026,2433.2,2432.7,3.6247]
[1728370252207,1.9026,2433.2,2432.8,0.41113]
[1728370252208,0.81474,2432.9,2432.8,0.41113]
[1728370254607,0.4036,2432.9,2432.8,0.41113]
[1728370255002,0.7892,2432.9,2432.8,0.41113]
[1728370257411,1.20033,2432.9,2432.8,0.41113]
[1728370257811,0.7892,2432.9,2432.8,0.41113]
[1728370260422,0.83369,2433.2,2433.1,0.4111]
[1728370261307,0.4226,2433.2,2433.1,0.4111]
[1728370261605,1.89106,2433.4,2433.3,0.41106]
[1728370262305,17.36571,2433.6,2433.5,0.41103]
[1728370262622,15.73699,2433.6,2433.5,0.41103]
[1728370264110,15.73699,2433.6,2433.5,1.89103]
[1728370264311,15.73699,2433.6,2433.5,2.30823]
[1728370264513,15.73699,2433.6,2433.5,0.82823]
[1728370264721,15.73699,2433.6,2433.5,4.93783]
[1728370265223,15.73699,2433.6,2433.5,14.14783]
[1728370269120,3.10457245,2434.9,2433.6,4.1088]
[1728370269419,3.2078,2435.7,2434.8,6.4178]
[1728370269613,3.2479641,2435.5,2435.3,0.41071]
[1728370269810,3.21,2435.5,2435.2,3.2078]
[1728370270016,6.4579641,2435.3,2434.9,0.8332]
[1728370270222,6.4579641,2435.3,2434.9,1.24398]
[1728370270223,3.2479641,2435.0,2434.9,1.24398]
[1728370271124,0.41066,2435.7,2435.3,0.41072]
[1728370271423,3.2479641,2435.4,2435.3,0.41072]
[1728370271825,1.2526,2435.9,2435.6,0.41067]
[1728370272014,3.2479641,2435.5,2435.4,3.61851]
[1728370274823,0.417,2435.9,2435.7,0.41065]
[1728370275119,0.417,2435.9,2435.4,3.2078]
[1728370275120,3.2479641,2435.7,2435.5,0.4161]
[1728370275338,3.2479641,2435.7,2435.6,0.41067]
[1728370278427,0.417,2435.9,2435.8,0.41064]
[1728370278622,12.417,2435.9,2435.8,3.61844]
[1728370278923,3.2479641,2435.9,2435.8,3.61844]
[1728370280930,3.2479641,2435.9,2435.8,3.2078]
[1728370281227,3.2479641,2435.9,2435.8,3.61844]
[1728370287334,3.2078,2437.0,2436.1,1.02645]
[1728370287634,3.2479641,2436.7,2436.6,3.62051]
[1728370290031,0.3976,2436.9,2436.8,0.41047]
[1728370290238,12.3976,2436.9,2436.8,0.41047]
[1728370290431,15.6455641,2436.9,2436.8,0.41047]
[1728370293444,15.6455641,2436.9,2436.5,3.2078]
[1728370293637,3.2479641,2436.6,2436.5,3.61832]
[1728370294038,15.2479641,2436.6,2436.5,3.61832]
[1728370297246,3.2479641,2436.6,2436.5,3.61832]
[1728370298243,1.81017708,2436.6,2436.5,3.61832]
[1728370299558,1.81017708,2436.6,2436.5,6.82832]
[1728370301052,1.81017708,2436.6,2436.5,3.61832]
[1728370301253,13.81017708,2436.6,2436.5,3.61832]
[1728370301661,14.22107708,2436.6,2436.5,3.61832]
[1728370301852,14.22107708,2436.6,2436.5,3.2078]
[1728370302054,15.01718708,2436.6,2436.5,3.2078]
[1728370302951,15.01718708,2436.6,2436.5,3.61832]
[1728370303160,14.60667708,2436.6,2436.5,3.61832]
[1728370304458,15.01718708,2436.6,2436.5,3.61832]
[1728370306260,15.01718708,2436.6,2436.5,3.2078]
[1728370307053,15.01718708,2436.6,2436.5,3.61832]
[1728370307260,15.01718708,2436.6,2436.5,3.2078]
[1728370307459,15.01718708,2436.6,2436.5,3.61832]
[1728370307860,15.01718708,2436.6,2436.5,3.2078]
[1728370311058,15.01718708,2436.6,2436.5,3.61832]
[1728370311463,15.01718708,2436.6,2436.5,3.2078]
[1728370312459,15.01718708,2436.6,2436.5,3.61832]
[1728370314367,14.60667708,2436.6,2436.5,3.61832]
[1728370315363,13.81017708,2436.6,2436.5,3.61832]
[1728370315561,1.2,2436.9,2436.5,10.5218]
[1728370315862,13.31645192,2436.9,2436.5,3.2078]
[1728370316067,1.81017708,2436.6,2436.5,3.61832]
[1728370316571,13.81017708,2436.6,2436.5,3.61832]
[1728370317567,1.81017708,2436.6,2436.5,3.61832]
[1728370320967,0.3976,2436.9,2436.5,7.72232]
[1728370321175,1.81017708,2436.7,2436.6,0.83601]
[1728370321373,1.81017708,2436.7,2436.6,1.22891]
[1728370322977,0.41044,2437.0,2436.9,0.41046]
[1728370323278,12.41044,2437.0,2436.9,0.41046]
[1728370323467,14.22061708,2437.0,2436.9,0.41046]
[1728370324069,0.41047,2436.9,2436.8,0.41046]
[1728370324371,2.22065708,2436.8,2436.7,0.41048]
[1728370324576,2.64305708,2436.8,2436.7,0.41048]
[1728370324870,14.23257708,2436.8,2436.7,0.41048]
[1728370326970,14.64304708,2436.8,2436.7,0.41048]
[1728370327471,14.23257708,2436.8,2436.7,0.41048]
[1728370327674,13.81017708,2436.8,2436.7,0.41048]
[1728370330572,1.81017708,2436.8,2436.7,0.41048]
[1728370333774,1.81017708,2436.8,2436.7,0.80798]
[1728370335281,0.4035,2437.2,2437.1,0.41042]
[1728370335478,1.81017708,2437.2,2437.1,1.89042]
[1728370335982,1.81017708,2437.2,2437.1,2.28792]
[1728370336182,1.24746,2437.5,2437.4,0.41037]
[1728370336384,1.24746,2437.5,2437.1,6.39112]
[1728370336385,1.81017708,2437.3,2437.1,1.8775]
[1728370336684,1.81017708,2437.3,2437.2,0.4104]
[1728370339885,0.8371,2437.5,2437.2,0.4104]
[1728370339886,1.24747,2437.5,2437.4,0.41037]
[1728370340078,12.0,2437.5,2437.4,0.41037]
[1728370340273,13.81017708,2437.5,2437.4,0.41037]
[1728370340475,13.81017708,2437.5,2437.4,0.82877]
[1728370340985,14.22052708,2437.5,2437.4,0.82877]
[1728370341178,1.81017708,2437.5,2437.4,0.82877]
[1728370341984,2.22052708,2437.5,2437.4,0.82877]
[1728370342286,1.81017708,2437.5,2437.4,0.82877]
[1728370342789,1.81017708,2437.5,2437.4,2.30877]
[1728370343180,0.4115,2437.9,2437.5,1.02589]
[1728370343384,0.4115,2437.9,2437.8,5.0981]
[1728370343585,3.2078,2438.8,2437.8,8.7894]
[1728370343788,2.22045708,2438.0,2437.9,0.41028]
[1728370344488,1.81017708,2438.0,2437.9,0.41028]
[1728370345290,17.01017708,2438.0,2437.6,0.096]
[1728370345485,2.22050708,2437.7,2437.6,0.41034]
[1728370345990,14.22050708,2437.7,2437.6,0.41034]
[1728370346394,0.41034,2437.6,2437.5,3.61815]
[1728370346580,2.64161708,2437.6,2437.5,3.61815]
[1728370346789,14.64161708,2437.6,2437.5,3.2078]
[1728370347085,14.64161708,2437.6,2437.5,3.61815]
[1728370347986,14.23127708,2437.6,2437.5,3.61815]
[1728370348287,14.64161708,2437.6,2437.5,3.61815]
[1728370349292,14.23127708,2437.6,2437.5,3.61815]
[1728370349494,0.8175,2437.9,2437.5,10.5102]
[1728370349684,2.22049708,2437.7,2437.6,0.3859]
[1728370349886,1.81017708,2437.6,2437.5,3.61815]
[1728370350092,14.22051708,2437.6,2437.5,3.61815]
[1728370350388,13.81017708,2437.6,2437.5,3.61815]
[1728370351291,13.81017708,2437.6,2437.5,3.2078]
[1728370351493,1.81017708,2437.6,2437.5,3.61815]
[1728370353894,1.2393,2437.9,2437.7,0.41032]
[1728370354089,13.2393,2437.9,2437.7,0.41032]
[1728370354293,1.81017708,2437.8,2437.7,0.41032]
[1728370354693,0.41032,2437.7,2437.6,0.81783]
[1728370354995,0.41034,2437.6,2437.5,6.81815]
[1728370355395,0.41034,2437.6,2437.5,7.72055]
[1728370355892,1.2393,2437.9,2437.5,7.3102]
[1728370356097,2.22050708,2437.7,2437.6,0.41034]
[1728370356291,1.81017708,2437.7,2437.6,0.41034]
[1728370358196,4.23328,2438.5,2437.6,4.51274]
[1728370358397,2.22044708,2438.0,2437.9,3.2078]
[1728370358597,2.22044708,2438.0,2437.9,3.61809]
[1728370358799,2.22044708,2438.0,2437.9,3.2078]
[1728370359397,1.81017708,2438.3,2437.9,6.4078]
[1728370359693,0.41022,2438.3,2438.2,3.2078]
[1728370359996,14.22039708,2438.3,2438.2,3.2078]
[1728370360396,14.22039708,2438.3,2438.2,3.61804]
[1728370360604,14.22039708,2438.3,2438.2,3.2078]
[1728370364116,0.41022,2438.3,2438.2,7.3094]
[1728370364316,1.81017708,2438.3,2438.2,3.61804]
[1728370364907,1.81017708,2438.3,2438.2,3.2078]
[1728370364908,2.22039708,2438.3,2438.2,3.2078]
[1728370365115,14.64099708,2438.3,2438.2,3.2078]
[1728370366114,1.81017708,2438.3,2438.2,3.61804]
[1728370366413,0.41021,2438.4,2438.2,3.61804]
[1728370366414,0.41021,2438.4,2438.2,7.3094]
[1728370366614,0.41022,2438.3,2438.2,3.61803]
[1728370367412,0.41022,2438.3,2438.2,3.2078]
[1728370367619,14.22039708,2438.3,2438.2,3.2078]
[1728370367823,14.22039708,2438.3,2438.2,3.61804]
[1728370368019,13.81017708,2438.3,2438.2,3.61804]
[1728370368625,14.22039708,2438.3,2438.2,3.2078]
[1728370368922,1.81017708,2438.3,2438.2,3.61804]
[1728370369224,2.22039708,2438.3,2438.2,3.61804]
[1728370369416,1.81017708,2438.3,2438.2,4.01124]
[1728370369617,2.22039708,2438.3,2438.2,4.01124]
[1728370369818,2.22039708,2438.3,2438.2,3.601]
[1728370370016,14.22039708,2438.3,2438.2,3.601]
[1728370371115,14.22039708,2438.3,2438.2,4.01124]
[1728370371422,14.22039708,2438.3,2438.2,3.601]
[1728370372617,14.22039708,2438.3,2438.2,3.2078]
[1728370376631,1.81017708,2438.3,2438.2,3.2078]
[1728370376822,0.40987,2440.5,2439.2,0.41007]
[1728370377028,0.40989,2440.3,2440.2,3.2078]
[1728370377224,0.40988,2440.3,2440.2,3.2078]
[1728370377520,3.2,2440.7,2440.2,3.2078]
[1728370378229,0.40983,2440.6,2440.5,3.2078]
[1728370378621,10.50743,2440.6,2440.5,3.2078]
[1728370378823,0.40988,2440.3,2439.9,3.2078]
[1728370379025,0.40993,2440.1,2439.6,0.40999]
[1728370379323,3.2,2440.3,2440.0,3.2078]
[1728370379528,0.4099,2440.2,2440.0,3.2078]
[1728370379829,0.40992,2440.1,2440.0,3.2078]
[1728370381519,4.50832,2440.1,2440.0,3.2078]
[1728370381930,13.70832,2440.1,2440.0,3.2078]
[1728370382324,7.70832,2440.1,2440.0,3.2078]
[1728370382523,54.50832,2440.1,2440.0,3.2078]
[1728370383132,48.50832,2440.1,2440.0,3.2078]
[1728370383720,48.50832,2440.1,2440.0,2.57560983]
[1728370384432,54.50832,2440.1,2440.0,2.57560983]
[1728370384728,48.50832,2440.1,2440.0,2.57560983]
[1728370385838,44.40992,2440.1,2440.0,2.57560983]
[1728370387125,7.70832,2440.1,2440.0,2.57560983]
[1728370387329,3.60992,2440.1,2440.0,2.57560983]
[1728370388437,7.70832,2440.1,2440.0,2.57560983]
[1728370388933,7.70832,2440.1,2440.0,1.29520983]
[1728370389135,0.40997,2439.8,2439.7,3.2078]
[1728370389538,4.50837,2439.8,2439.7,3.2078]
[1728370393239,4.50837,2439.8,2439.7,2.38411915]
[1728370393431,13.70837,2439.8,2439.7,2.16311915]
[1728370393638,7.70837,2439.8,2439.7,2.16311915]
[1728370394345,7.8468688,2439.8,2439.7,2.16311915]
[1728370396047,7.4368988,2439.8,2439.4,3.2078]
[1728370396239,0.41002,2439.5,2439.4,3.2078]
[1728370397638,7.70922,2439.5,2439.4,3.2078]
[1728370400445,13.2992,2439.5,2439.0,3.3038]
[1728370400741,0.41008,2439.1,2439.0,3.2078]
[1728370401148,1.02506,2439.5,2439.0,3.2078]
[1728370401340,0.41003,2439.4,2439.3,3.2078]
[1728370404350,3.61003,2439.4,2439.3,3.2078]
[1728370404850,7.70923,2439.4,2439.3,3.2078]
[1728370405046,7.70923,2439.4,2438.9,0.8086]
[1728370405047,13.7006,2439.4,2438.9,4.0164]
[1728370405356,0.4101,2439.0,2438.9,4.0164]
[1728370411063,3.6101,2439.0,2438.9,4.0164]
[1728370413757,7.7101,2439.0,2438.9,4.0164]
[1728370413954,7.7101,2439.0,2438.9,3.2078]
[1728370414262,7.7101,2439.0,2438.6,4.0083]
[1728370414263,13.3,2439.0,2438.6,4.0083]
[1728370414454,3.61015,2438.7,2438.6,4.0083]
[1728370414960,7.71095,2438.7,2438.6,4.0083]
[1728370416459,0.41015,2438.7,2438.6,4.0083]
[1728370416761,3.61015,2438.7,2438.6,4.0083]
[1728370417254,7.71095,2438.7,2438.6,4.0083]
[1728370417955,3.61015,2438.7,2438.6,4.0083]
[1728370421354,3.75287609,2438.7,2438.6,4.0083]
[1728370428565,0.41015,2438.7,2438.6,4.0083]
[1728370430869,3.61015,2438.7,2438.6,4.0083]
[1728370431865,7.71095,2438.7,2438.6,4.0083]
[1728370433362,7.71095,2438.7,2438.6,3.2078]
[1728370433566,8.09535,2438.7,2438.6,2.89155356]
[1728370434870,0.41022,2438.3,2438.2,0.4024]
[1728370435173,3.61022,2438.3,2438.2,0.4024]
[1728370435578,0.41025,2438.2,2438.0,3.2078]
[1728370435972,0.41025,2438.2,2438.0,3.61807]
[1728370436680,0.41025,2438.2,2438.1,0.8151]
[1728370436875,3.2,2438.3,2438.1,0.8151]
[1728370437075,3.61023,2438.3,2438.1,1.22535]
[1728370437276,3.61023,2438.3,2438.1,0.8151]
[1728370437881,0.41024,2438.2,2438.1,0.8151]
[1728370438678,0.41024,2438.2,2438.1,4.0229]
[1728370439282,0.41027,2438.0,2437.9,0.4261]
[1728370443787,0.41029,2437.9,2437.8,0.8146]
[1728370443992,3.61029,2437.9,2437.8,0.8146]
[1728370444891,3.61029,2437.9,2437.8,0.4009]
[1728370446288,3.2,2437.9,2437.7,3.2078]
[1728370446488,0.4103,2437.8,2437.7,3.2078]
[1728370449891,0.4145,2437.8,2437.6,0.3846]
[1728370450187,3.61032,2437.7,2437.6,0.3846]
[1728370451186,3.61032,2437.7,2437.5,0.4078]
[1728370451187,0.41034,2437.6,2437.5,0.4078]
[1728370456193,0.41035,2437.5,2437.4,3.6296]
[1728370456390,3.61035,2437.5,2437.4,3.6296]
[1728370456994,3.61035,2437.5,2437.4,3.2078]
[1728370458194,7.71275,2437.5,2437.4,3.2078]
[1728370458392,5.99275,2437.5,2437.4,3.2078]
[1728370458987,1.89035,2437.5,2437.4,3.2078]
[1728370459396,0.41035,2437.5,2437.4,3.2078]
[1728370459598,1.89035,2437.5,2437.4,3.2078]
[1728370460094,1.89035,2437.5,2437.4,3.61817]
[1728370460095,1.48,2437.5,2437.4,3.61817]
[1728370460404,3.2,2437.5,2437.4,3.61817]
[1728370461793,3.2,2437.5,2437.4,3.2078]
[1728370461992,3.2,2437.5,2437.4,3.61817]
[1728370463396,0.41033,2437.7,2437.4,3.2078]
[1728370463397,3.2,2437.7,2437.4,3.2078]
[1728370463700,3.2,2437.7,2437.5,0.7931]
[1728370463900,0.41034,2437.6,2437.5,0.7931]
[1728370464900,3.61034,2437.7,2437.5,0.7931]
[1728370465196,0.41034,2437.6,2437.5,0.7931]
[1728370467302,0.41034,2437.6,2437.5,4.0009]
[1728370467707,0.41034,2437.6,2437.5,0.7931]
[1728370467905,0.41034,2437.6,2437.5,4.0009]
[1728370469311,3.2,2437.7,2437.5,4.0009]
[1728370469510,3.61033,2437.7,2437.5,4.41125]
[1728370469907,3.2,2437.7,2437.5,4.0009]
[1728370470110,0.41034,2437.6,2437.5,4.0009]
[1728370476508,3.2,2437.7,2437.5,4.41125]
[1728370476814,3.61033,2437.7,2437.5,4.41124]
[1728370478808,0.41034,2437.6,2437.5,4.0009]
[1728370479312,3.61033,2437.7,2437.5,4.41124]
[1728370479811,0.41034,2437.6,2437.5,4.41124]
[1728370480413,1.89034,2437.6,2437.5,4.41124]
[1728370482116,1.89034,2437.6,2437.5,4.0009]
[1728370482615,1.89034,2437.6,2437.5,4.41125]
[1728370482818,1.89034,2437.6,2437.5,4.0009]
[1728370484016,1.89034,2437.6,2437.5,4.41125]
[1728370484827,1.89034,2437.6,2437.5,8.51365]
[1728370488024,1.89034,2437.6,2437.5,3.6022]
[1728370488525,2.29234,2437.6,2437.5,3.2078]
[1728370488722,1.882,2437.6,2437.3,0.4173]
[1728370489027,0.41039,2437.3,2437.2,3.2078]
[1728370489429,0.79509,2437.3,2437.2,3.2078]
[1728370490123,0.41038,2437.4,2437.3,0.41038]
[1728370490420,1.89038,2437.4,2437.3,0.41038]
[1728370491223,0.41038,2437.4,2437.3,0.41038]
[1728370491521,1.48,2437.4,2437.3,4.1032]
[1728370491725,1.89037,2437.4,2437.3,4.51359]
[1728370495121,1.89037,2437.4,2437.3,7.72139]
[1728370495422,1.89037,2437.4,2437.3,3.61819]
[1728370496527,1.89037,2437.4,2437.3,3.2078]
[1728370498029,1.89037,2437.4,2437.3,3.61819]
[1728370498231,1.89037,2437.4,2437.3,3.2078]
[1728370498525,1.89037,2437.4,2437.3,3.61819]
[1728370498831,1.89037,2437.4,2437.3,3.61818]
[1728370499329,1.89037,2437.4,2437.3,3.2078]
[1728370500724,1.89037,2437.4,2437.0,1.2074]
[1728370500725,0.4104,2437.3,2437.0,4.4152]
[1728370500928,1.48,2437.1,2437.0,4.82564]
[1728370501834,1.89042,2437.1,2437.0,4.0215]
[1728370502928,1.89042,2437.1,2437.0,3.6077]
[1728370503435,1.89042,2437.1,2437.0,3.2078]
[1728370505622,1.48,2437.1,2436.8,0.80207]
[1728370505818,1.48,2436.9,2436.8,0.80207]
[1728370507235,1.89046,2436.9,2436.8,0.80207]
[1728370507437,1.48,2436.9,2436.8,0.80207]
[1728370508229,1.89046,2436.9,2436.8,0.80207]
[1728370509024,1.48,2436.9,2436.8,0.80207]
[1728370510027,1.48,2436.9,2436.8,4.90607]
[1728370512735,1.89046,2436.9,2436.8,0.3916]
[1728370513627,1.89046,2436.9,2436.8,0.80207]
[1728370515441,1.48,2436.9,2436.8,0.80207]
[1728370516138,0.6713,2437.2,2436.8,4.4956]
[1728370516343,0.52632135,2437.4,2437.1,3.61822]
[1728370516639,1.08169,2437.3,2437.2,0.7039]
[1728370517644,0.4104,2437.2,2437.1,3.2078]
[1728370518045,1.8904,2437.2,2437.1,3.2078]
[1728370518543,1.8904,2437.2,2437.1,3.9122]
[1728370520242,1.48,2437.2,2437.1,3.9122]
[1728370520445,1.48,2437.2,2437.1,4.32262]
[1728370521746,1.48,2437.4,2437.1,3.9122]
[1728370522040,1.48,2437.4,2437.3,0.41039]
[1728370522340,0.41033,2437.7,2437.5,0.41034]
[1728370522546,0.41033,2437.7,2437.6,0.7027]
[1728370522745,0.41034,2437.6,2437.5,3.2078]
[1728370522937,2.1777,2437.6,2437.5,3.2078]
[1728370523143,2.1777,2437.6,2437.5,3.61815]
[1728370524744,1.48,2437.6,2437.5,3.61815]
[1728370527443,0.7107,2438.0,2437.5,7.3102]
[1728370527740,0.83403364,2438.1,2437.9,0.41029]
[1728370527937,1.48,2438.0,2437.9,1.06719]
[1728370528143,1.24429364,2438.1,2437.9,0.6569]
[1728370528340,1.89027,2438.0,2437.9,0.6569]
[1728370528550,1.48,2438.0,2437.9,1.06719]
[1728370529448,3.2078,2438.4,2437.9,0.6569]
[1728370529674,3.2078,2438.4,2437.9,1.06719]
[1728370529675,1.48,2438.0,2437.9,1.06719]
[1728370531647,1.89027,2438.0,2437.9,1.06719]
[1728370532347,1.48,2438.0,2437.9,1.06719]
[1728370534145,1.48,2438.0,2437.9,4.27499]
[1728370534947,1.89027,2438.0,2437.9,4.27499]
[1728370535254,2.53567,2438.0,2437.9,4.27499]
[1728370535452,2.53567,2438.0,2437.9,3.61809]
[1728370535649,0.6454,2438.0,2437.9,3.61809]
[1728370535851,2.1254,2438.0,2437.9,3.61809]
[1728370536854,0.6454,2438.0,2437.9,3.61809]
[1728370537256,1.48,2438.0,2437.9,3.61809]
[1728370539345,2.1675,2438.0,2437.9,3.61809]
[1728370539548,2.57777,2438.0,2437.9,3.2078]
[1728370540761,1.02572,2437.9,2437.7,3.2078]
[1728370540950,1.02572,2437.9,2437.5,4.197]
[1728370540951,1.48,2437.8,2437.5,0.41035]
[1728370541251,1.48,2437.6,2437.5,0.41035]
[1728370542368,1.89034,2437.6,2437.5,0.41035]
[1728370542652,3.2,2437.6,2437.5,0.41035]
[1728370548870,3.2,2438.0,2437.9,0.41027]
[1728370549161,1.02549,2438.5,2438.1,0.41025]
[1728370549162,3.61025,2438.2,2438.1,0.41025]
[1728370549767,3.2,2438.2,2438.0,2.0689]
[1728370549967,1.12475,2438.1,2438.0,0.6857]
[1728370550168,1.12475,2438.1,2438.0,1.09597]
[1728370550369,0.7145,2438.1,2438.0,1.09597]
[1728370550868,0.7145,2438.1,2438.0,0.41027]
[1728370562482,2.1945,2438.1,2438.0,0.41027]
[1728370567986,0.41027,2438.0,2437.9,3.2078]
[1728370568183,0.41027,2438.0,2437.4,5.22292]
[1728370568184,5.5221,2438.0,2437.5,3.2078]
[1728370568489,1.48,2437.6,2437.5,3.61814]
[1728370569184,2.187,2437.6,2437.5,3.61814]
[1728370574383,1.55964673,2438.0,2437.9,0.41029]
[1728370574384,1.10208,2438.0,2437.9,0.41029]
[1728370574583,2.8579,2438.0,2437.9,3.61809]
[1728370575193,3.26817,2438.0,2437.9,3.61809]
[1728370575890,1.3779,2438.0,2437.9,3.61809]
[1728370576094,3.26817,2438.0,2437.9,3.61809]
[1728370576686,3.26817,2438.0,2437.9,3.2078]
[1728370576882,2.8579,2438.0,2437.6,5.2744]
[1728370577184,1.48,2437.7,2437.6,5.68474]
[1728370577588,2.2249,2437.7,2437.6,5.68474]
[1728370578991,2.63522,2437.7,2437.6,3.8942]
[1728370579290,0.41036,2437.5,2437.4,0.41036]
[1728370579489,1.48,2437.5,2437.4,0.41036]
[1728370583087,1.89035,2437.5,2437.4,0.41036]
[1728370583390,1.48,2437.5,2437.4,0.41036]
[1728370585294,1.89035,2437.5,2437.4,0.41036]
[1728370587796,1.48,2437.5,2437.4,0.41036]
[1728370588397,1.89035,2437.5,2437.4,0.41036]
[1728370588597,1.48,2437.5,2437.4,0.41036]
[1728370589095,0.14259939,2437.8,2437.4,4.1024]
[1728370589295,1.89033,2437.7,2437.6,0.41033]
[1728370589497,0.41034,2437.6,2437.5,4.30174]
[1728370589702,1.14324,2437.6,2437.5,4.30174]
[1728370590891,1.14324,2437.6,2437.5,3.61814]
[1728370591903,2.62324,2437.6,2437.5,3.2078]
[1728370592405,2.62324,2437.6,2437.5,3.61815]
[1728370592606,2.2129,2437.6,2437.5,3.61815]
[1728370593099,2.2129,2437.6,2437.4,0.41037]
[1728370593302,1.89035,2437.5,2437.4,0.41037]
[1728370593503,1.48,2437.5,2437.4,0.41037]
[1728370593803,1.89035,2437.5,2437.4,0.41037]
[1728370596600,1.48,2437.5,2437.3,0.6887]
[1728370596803,0.683,2437.4,2437.2,4.67]
[1728370597003,1.48,2437.3,2437.2,5.08039]
[1728370597198,2.18,2437.3,2437.2,5.08039]
[1728370600407,2.59039,2437.3,2437.2,5.08039]
[1728370601606,2.59039,2437.3,2437.2,3.2078]
[1728370602005,6.69359,2437.3,2437.2,3.2078]
[1728370604198,6.69359,2437.3,2436.9,6.17405762]
[1728370604199,0.41044,2437.0,2436.9,6.17405762]
[1728370604403,0.41044,2437.0,2436.9,6.07805762]
[1728370604898,1.15154,2437.0,2436.9,6.07805762]
[1728370605105,1.85774,2437.0,2436.9,6.07805762]
[1728370607411,1.85774,2437.0,2436.9,4.60465762]
[1728370607607,1.85774,2437.0,2436.8,0.6839]
[1728370607608,0.41046,2436.9,2436.8,0.6839]
[1728370607912,1.89046,2436.9,2436.8,0.6839]
[1728370609520,0.4105,2436.7,2436.5,0.41052]
[1728370609707,0.41051,2436.6,2436.5,0.6847]
[1728370613914,1.87231,2436.6,2436.5,0.6847]
[1728370614514,0.41054,2436.4,2436.3,3.2078]
[1728370614706,0.41054,2436.4,2436.3,3.9312]
[1728370615214,1.14394,2436.4,2436.3,3.9312]
[1728370619310,5.24874,2436.4,2436.3,3.2078]
[1728370621317,4.8382,2436.4,2436.2,0.7329]
[1728370621619,1.89056,2436.3,2436.2,0.7329]
[1728370621810,1.48,2436.3,2436.1,0.41059]
[1728370622006,0.41057,2436.2,2436.1,0.41059]
[1728370622908,0.41057,2436.2,2436.0,5.0406]
[1728370623105,1.48,2436.1,2436.0,5.0406]
[1728370623708,1.48,2436.1,2436.0,9.1454]
[1728370624113,1.48,2436.1,2436.0,5.0406]
[1728370624418,1.0262,2436.8,2436.1,1.02648]
[1728370624720,3.889,2437.1,2436.5,3.2078]
[1728370624932,1.48,2436.9,2436.8,3.61826]
[1728370625309,1.48,2436.9,2436.8,3.2078]
[1728370625516,1.89046,2436.9,2436.8,3.2078]
[1728370626519,3.2,2436.9,2436.6,2.14]
[1728370626719,3.61049,2436.7,2436.6,2.14]
[1728370627213,3.61049,2436.7,2436.6,6.244]
[1728370627413,3.2,2436.7,2436.6,6.65451]
[1728370627809,0.41048,2436.8,2436.6,6.65451]
[1728370628019,3.2,2436.9,2436.8,0.41046]
[1728370628215,3.61046,2436.9,2436.8,3.2078]
[1728370628420,3.2,2436.9,2436.8,3.61827]